bitfinex-derivatives/quotes_BTCF0:USTF0_20240929
["timestamp","ask_amount","ask_price","bid_price","bid_amount"]
[1727582337041,0.07599897,65851.0,65850.0,0.02373885]
[1727582337834,0.07600996,65851.0,65850.0,0.02373885]
[1727582338933,0.07600996,65851.0,65850.0,0.02473885]
[1727582343438,0.075916,65852.0,65850.0,0.14542131]
[1727582343645,0.075916,65852.0,65851.0,0.22192939]
[1727582344035,0.075916,65852.0,65851.0,0.22192216]
[1727582345145,0.076916,65852.0,65851.0,0.22192216]
[1727582345950,0.077916,65852.0,65851.0,0.22192216]
[1727582346154,0.077916,65852.0,65851.0,0.25990419]
[1727582346449,0.077916,65852.0,65851.0,0.28364304]
[1727582348843,0.077916,65852.0,65851.0,0.24566101]
[1727582349043,0.077916,65852.0,65851.0,0.22192216]
[1727582349948,0.077916,65852.0,65851.0,0.24566095]
[1727582350449,0.077916,65852.0,65851.0,0.28370748]
[1727582351445,0.20049823,65852.0,65851.0,0.06172086]
[1727582353748,0.33722378,65852.0,65851.0,0.06172086]
[1727582353942,0.20049823,65852.0,65851.0,0.06172086]
[1727582354537,0.33722378,65852.0,65851.0,0.06172086]
[1727582355147,0.33721776,65852.0,65851.0,0.06172086]
[1727582356550,0.33721776,65852.0,65851.0,0.02373879]
[1727582356755,0.33721776,65852.0,65851.0,0.06172124]
[1727582358553,0.33721776,65852.0,65851.0,0.28373575]
[1727582358554,0.077916,65852.0,65851.0,0.28373575]
[1727582359451,0.077916,65852.0,65851.0,0.24575345]
[1727582363557,0.077916,65852.0,65851.0,0.22201451]
[1727582364754,0.077916,65852.0,65851.0,0.2457535]
[1727582365149,0.077916,65852.0,65851.0,0.22201451]
[1727582365356,0.077916,65852.0,65851.0,0.2457535]
[1727582365958,0.077916,65852.0,65851.0,0.22201451]
[1727582366762,0.077916,65852.0,65851.0,0.10128576]
[1727582367463,0.077916,65852.0,65851.0,0.17715683]
[1727582367659,0.187916,65852.0,65851.0,0.17715683]
[1727582368160,0.187916,65852.0,65851.0,0.07587107]
[1727582369051,0.187916,65852.0,65851.0,0.09961006]
[1727582369852,0.187916,65852.0,65851.0,0.20123658]
[1727582370953,0.187916,65852.0,65851.0,0.09961006]
[1727582371154,0.187916,65852.0,65851.0,0.20123496]
[1727582371356,0.187916,65852.0,65851.0,0.07587107]
[1727582371557,0.187916,65852.0,65851.0,0.17749518]
[1727582373555,0.38447153,65852.0,65849.0,0.124853]
[1727582373763,0.07501871,65851.0,65849.0,0.124853]
[1727582373964,0.07501871,65850.0,65849.0,0.124853]
[1727582374961,0.07500289,65850.0,65849.0,0.15059218]
[1727582377867,0.07500289,65850.0,65849.0,0.17433136]
[1727582379760,0.075917,65851.0,65849.0,0.17433136]
[1727582379967,0.0749992,65850.0,65849.0,0.17433136]
[1727582381557,0.075917,65851.0,65849.0,0.39711992]
[1727582381870,0.075917,65851.0,65850.0,0.22278856]
[1727582384159,0.075917,65851.0,65850.0,0.22378856]
[1727582384361,0.075917,65851.0,65850.0,0.28551039]
[1727582384766,0.075917,65851.0,65850.0,0.16435508]
[1727582384969,0.075917,65851.0,65850.0,0.28549802]
[1727582388673,0.19752798,65851.0,65850.0,0.06272183]
[1727582389771,0.19754368,65851.0,65850.0,0.06272183]
[1727582390372,0.15094366,65851.0,65850.0,0.06272183]
[1727582392680,0.15094366,65851.0,65850.0,0.02473918]
[1727582393674,0.19754358,65851.0,65850.0,0.02473918]
[1727582394780,0.19755468,65851.0,65850.0,0.02473918]
[1727582395676,0.075917,65851.0,65850.0,0.22375699]
[1727582396271,0.075917,65851.0,65850.0,0.24749612]
[1727582397478,0.075917,65851.0,65850.0,0.22375699]
[1727582398086,0.075917,65851.0,65850.0,0.22375243]
[1727582399081,0.075917,65851.0,65850.0,0.26173508]
[1727582399281,0.075917,65851.0,65850.0,0.28547424]
[1727582400789,0.075917,65851.0,65850.0,0.22375243]
[1727582402683,0.075917,65851.0,65850.0,0.28547409]
[1727582403092,0.075917,65851.0,65850.0,0.38711474]
[1727582403296,0.075917,65851.0,65850.0,0.28549233]
[1727582403685,0.075917,65851.0,65850.0,0.16435239]
[1727582404795,0.075917,65851.0,65850.0,0.10263073]
[1727582405181,0.075917,65851.0,65850.0,0.12636983]
[1727582410881,0.075917,65851.0,65850.0,0.0247391]
[1727582410882,0.19756702,65851.0,65850.0,0.0247391]
[1727582412690,0.19758193,65851.0,65850.0,0.0247391]
[1727582413801,0.19758193,65851.0,65850.0,0.06272162]
[1727582417490,0.19756431,65851.0,65850.0,0.06272162]
[1727582418988,0.15191574,65852.0,65850.0,0.42613753]
[1727582419192,0.22783174,65852.0,65851.0,0.46964115]
[1727582420215,0.22883174,65852.0,65851.0,0.46964115]
[1727582421001,0.22983174,65852.0,65851.0,0.46964115]
[1727582422116,0.077916,65852.0,65851.0,0.46964115]
[1727582425918,0.11311119,65852.0,65849.0,0.124853]
[1727582426217,0.03519519,65851.0,65850.0,0.06172145]
[1727582427413,0.03519519,65851.0,65850.0,0.06272145]
[1727582430910,0.03519519,65851.0,65850.0,0.001]
[1727582432731,0.03519519,65851.0,65850.0,0.06272141]
[1727582433017,0.03779519,65851.0,65850.0,0.06272141]
[1727582433819,0.0026,65851.0,65850.0,0.28466727]
[1727582437132,0.0026,65851.0,65850.0,0.28469011]
[1727582440919,0.0026,65851.0,65850.0,0.06272141]
[1727582440920,0.07859454,65851.0,65850.0,0.06272141]
[1727582441925,0.07859454,65851.0,65850.0,0.03898241]
[1727582442122,0.07859454,65851.0,65850.0,0.06272148]
[1727582443827,0.07859454,65851.0,65850.0,0.001]
[1727582445730,0.15451154,65851.0,65850.0,0.001]
[1727582445921,0.075927,65842.0,65841.0,0.0035]
[1727582446126,0.075927,65842.0,65837.0,0.02161739]
[1727582446127,0.075929,65841.0,65837.0,0.02161739]
[1727582446429,0.11,65838.0,65834.0,0.0923]
[1727582446630,0.03516561,65837.0,65834.0,0.0923]
[1727582446823,0.14060585,65837.0,65834.0,0.0923]
[1727582447128,0.03433953,65837.0,65834.0,0.0923]
[1727582447330,0.03433953,65837.0,65836.0,0.1122781]
[1727582447533,0.02133953,65837.0,65836.0,0.1122781]
[1727582447834,0.02133953,65837.0,65836.0,0.13602229]
[1727582448029,0.01433953,65837.0,65836.0,0.14902229]
[1727582448822,0.06641197,65840.0,65836.0,0.52650896]
[1727582449022,0.185929,65841.0,65838.0,0.11]
[1727582449222,0.185929,65841.0,65839.0,0.22341167]
[1727582449520,0.185929,65841.0,65840.0,0.22341167]
[1727582450435,0.186929,65841.0,65840.0,0.22341167]
[1727582451020,0.186929,65841.0,65840.0,0.22441167]
[1727582451327,0.186929,65841.0,65840.0,0.22357011]
[1727582451727,0.186929,65841.0,65840.0,0.22356421]
[1727582451927,0.186929,65841.0,65840.0,0.10292316]
[1727582452430,0.186929,65841.0,65840.0,0.10692316]
[1727582452431,0.187929,65841.0,65840.0,0.10692316]
[1727582453141,0.187929,65841.0,65840.0,0.19778337]
[1727582454137,0.187929,65841.0,65840.0,0.10692316]
[1727582455140,0.187929,65841.0,65840.0,0.08071603]
[1727582455334,0.187929,65841.0,65840.0,0.005]
[1727582458839,0.2096769,65841.0,65840.0,0.005]
[1727582462442,0.0996769,65841.0,65840.0,0.005]
[1727582462636,0.2096769,65841.0,65840.0,0.005]
[1727582462838,0.187929,65841.0,65840.0,0.005]
[1727582463537,0.077929,65841.0,65840.0,0.005]
[1727582463739,0.187929,65841.0,65840.0,0.005]
[1727582464042,0.187929,65841.0,65840.0,0.18213152]
[1727582466341,0.187929,65841.0,65840.0,0.10641549]
[1727582466733,0.187929,65841.0,65840.0,0.18207942]
[1727582467041,0.187929,65841.0,65840.0,0.1820795]
[1727582467237,0.187929,65841.0,65840.0,0.10641549]
[1727582467633,0.548729,65841.0,65840.0,0.10641549]
[1727582468538,0.187929,65841.0,65840.0,0.10641549]
[1727582468843,0.548729,65841.0,65840.0,0.10641549]
[1727582469538,0.548729,65841.0,65840.0,0.10648212]
[1727582471043,0.548729,65841.0,65840.0,0.005]
[1727582473231,0.548729,65841.0,65840.0,0.18232605]
[1727582474133,0.548729,65841.0,65840.0,0.10665716]
[1727582474538,0.551329,65841.0,65840.0,0.10665716]
[1727582474844,0.551329,65841.0,65840.0,0.18247253]
[1727582475243,0.551329,65841.0,65840.0,0.10665716]
[1727582476243,0.190529,65841.0,65840.0,0.10665716]
[1727582476444,0.551329,65841.0,65840.0,0.10665716]
[1727582478439,0.190529,65841.0,65840.0,0.10665716]
[1727582478747,0.551329,65841.0,65840.0,0.10665716]
[1727582478953,0.551329,65841.0,65840.0,0.005]
[1727582479436,0.190529,65841.0,65840.0,0.005]
[1727582479632,0.551329,65841.0,65840.0,0.005]
[1727582480447,0.190529,65841.0,65840.0,0.005]
[1727582480850,0.551329,65841.0,65840.0,0.005]
[1727582483046,0.190529,65841.0,65840.0,0.005]
[1727582483256,0.551329,65841.0,65840.0,0.005]
[1727582485155,0.441329,65841.0,65840.0,0.005]
[1727582485355,0.551329,65841.0,65840.0,0.005]
[1727582485954,0.551329,65841.0,65840.0,0.22922249]
[1727582486557,0.190529,65841.0,65840.0,0.22922249]
[1727582487150,0.551329,65841.0,65840.0,0.22922249]
[1727582487455,0.441329,65841.0,65840.0,0.22922249]
[1727582487659,0.4754,65841.0,65840.0,0.22922249]
[1727582488657,0.4754,65841.0,65840.0,0.22832247]
[1727582489051,0.1146,65841.0,65840.0,0.22832247]
[1727582489259,0.551329,65841.0,65840.0,0.22832247]
[1727582493957,0.551329,65841.0,65840.0,0.10688247]
[1727582500969,0.551329,65841.0,65840.0,0.005]
[1727582501172,0.438729,65841.0,65840.0,0.005]
[1727582503775,0.548729,65841.0,65840.0,0.005]
[1727582508174,0.438729,65841.0,65840.0,0.005]
[1727582509071,0.438729,65841.0,65840.0,0.22807453]
[1727582512578,0.438729,65841.0,65840.0,0.005]
[1727582512779,0.438729,65841.0,65840.0,0.22808493]
[1727582515684,0.441329,65841.0,65840.0,0.22808493]
[1727582516083,0.441329,65841.0,65840.0,0.005]
[1727582524186,0.3634,65841.0,65840.0,0.22810702]
[1727582525187,0.439329,65841.0,65840.0,0.22810702]
[1727582525890,0.439329,65841.0,65840.0,0.22726229]
[1727582530688,0.439329,65841.0,65840.0,0.22695848]
[1727582531085,0.439329,65841.0,65840.0,0.005]
[1727582534396,0.078529,65841.0,65840.0,0.005]
[1727582539099,0.078529,65841.0,65840.0,0.2269098]
[1727582540408,0.075929,65841.0,65840.0,0.22691023]
[1727582545315,0.075929,65841.0,65840.0,0.22690997]
[1727582546202,0.11103716,65841.0,65840.0,0.005]
[1727582550111,0.1110215,65841.0,65840.0,0.005]
[1727582554219,0.075929,65841.0,65840.0,0.22696679]
[1727582554718,0.078529,65841.0,65840.0,0.22696679]
[1727582554905,0.078529,65841.0,65840.0,0.22699608]
[1727582559710,0.078529,65841.0,65840.0,0.22703143]
[1727582561323,0.078529,65841.0,65840.0,0.18214555]
[1727582566717,0.078529,65841.0,65840.0,0.005]
[1727582569321,0.15421351,65841.0,65840.0,0.005]
[1727582569528,0.15421323,65841.0,65840.0,0.005]
[1727582574626,0.15423572,65841.0,65840.0,0.005]
[1727582576430,0.078529,65841.0,65840.0,0.10631493]
[1727582576632,0.110429,65841.0,65840.0,0.10631493]
[1727582578631,0.110429,65841.0,65840.0,0.10630452]
[1727582579730,0.107829,65841.0,65840.0,0.10630452]
[1727582587928,0.107829,65841.0,65840.0,0.10629066]
[1727582591329,0.107829,65841.0,65840.0,0.005]
[1727582591330,0.1835534,65841.0,65840.0,0.005]
[1727582594743,0.1861534,65841.0,65840.0,0.005]
[1727582597143,0.1542534,65841.0,65840.0,0.005]
[1727582597942,0.5150534,65841.0,65840.0,0.005]
[1727582598451,0.439329,65841.0,65840.0,0.10629202]
[1727582598643,0.549329,65841.0,65840.0,0.10629202]
[1727582600336,0.188529,65841.0,65840.0,0.10629202]
[1727582600531,0.549329,65841.0,65840.0,0.10629202]
[1727582600738,0.188529,65841.0,65840.0,0.10629202]
[1727582601247,0.549329,65841.0,65840.0,0.10629202]
[1727582601443,0.188529,65841.0,65840.0,0.10629202]
[1727582601746,0.549329,65841.0,65840.0,0.10629202]
[1727582602446,0.188529,65841.0,65840.0,0.10629202]
[1727582602648,0.549329,65841.0,65840.0,0.10629202]
[1727582604637,0.188529,65841.0,65840.0,0.10629202]
[1727582606453,0.2642968,65841.0,65840.0,0.005]
[1727582607455,0.26429487,65841.0,65840.0,0.005]
[1727582608761,0.34022387,65841.0,65840.0,0.00455382]
[1727582610143,0.151866,65837.0,65836.0,0.0035]
[1727582610446,0.075941,65830.0,65821.0,0.29190691]
[1727582610646,0.54652097,65830.0,65825.0,0.0035]
[1727582610859,0.075944,65828.0,65822.0,0.0638]
[1727582611051,0.15114768,65828.0,65822.0,0.0638]
[1727582611247,0.14900551,65828.0,65822.0,0.0638]
[1727582611845,0.14100551,65828.0,65827.0,0.0347]
[1727582612246,0.20726363,65828.0,65827.0,0.0347]
[1727582612451,0.14104389,65828.0,65827.0,0.002]
[1727582613047,0.50284389,65828.0,65827.0,0.011]
[1727582613247,0.4628038,65828.0,65827.0,0.011]
[1727582613443,0.427744,65828.0,65827.0,0.11272809]
[1727582614046,0.427744,65828.0,65827.0,0.18847466]
[1727582614250,0.427744,65828.0,65827.0,0.011]
[1727582619061,0.066944,65828.0,65827.0,0.011]
[1727582619359,0.427744,65828.0,65827.0,0.011]
[1727582620761,0.066944,65828.0,65827.0,0.011]
[1727582620961,0.427744,65828.0,65827.0,0.011]
[1727582621159,0.427744,65828.0,65827.0,0.07151375]
[1727582621471,0.427744,65828.0,65827.0,0.011]
[1727582622655,0.066944,65828.0,65827.0,0.011]
[1727582622862,0.427744,65828.0,65827.0,0.011]
[1727582624448,0.066944,65828.0,65827.0,0.011]
[1727582624670,0.427744,65828.0,65827.0,0.011]
[1727582626166,0.066944,65828.0,65827.0,0.011]
[1727582626362,0.427744,65828.0,65827.0,0.011]
[1727582627157,0.066944,65828.0,65827.0,0.011]
[1727582627357,0.427744,65828.0,65827.0,0.011]
[1727582627754,0.066944,65828.0,65827.0,0.011]
[1727582627968,0.427744,65828.0,65827.0,0.011]
[1727582628266,0.066944,65828.0,65827.0,0.011]
[1727582628467,0.427744,65828.0,65827.0,0.18846062]
[1727582628765,0.066944,65828.0,65827.0,0.18846062]
[1727582629660,0.427744,65828.0,65827.0,0.18846062]
[1727582629861,0.066944,65828.0,65827.0,0.18846062]
[1727582630066,0.427744,65828.0,65827.0,0.18846062]
[1727582630270,0.066944,65828.0,65827.0,0.11271405]
[1727582630663,0.427744,65828.0,65827.0,0.11271405]
[1727582631564,0.427744,65828.0,65827.0,0.11271322]
[1727582632564,0.066944,65828.0,65827.0,0.11271322]
[1727582632765,0.427744,65828.0,65827.0,0.11271322]
[1727582632967,0.069544,65828.0,65827.0,0.11271322]
[1727582633166,0.430344,65828.0,65827.0,0.11271322]
[1727582633664,0.069544,65828.0,65827.0,0.11271322]
[1727582634070,0.430344,65828.0,65827.0,0.11271322]
[1727582636464,0.430344,65828.0,65827.0,0.011]
[1727582636777,0.069544,65828.0,65827.0,0.011]
[1727582637080,0.430344,65828.0,65827.0,0.011]
[1727582637667,0.069544,65828.0,65827.0,0.011]
[1727582638063,0.430344,65828.0,65827.0,0.011]
[1727582638675,0.069544,65828.0,65827.0,0.011]
[1727582638885,0.430344,65828.0,65827.0,0.011]
[1727582639171,0.46457304,65828.0,65827.0,0.011]
[1727582643469,0.430344,65828.0,65827.0,0.23455127]
[1727582646872,0.069544,65828.0,65827.0,0.23455127]
[1727582647077,0.430344,65828.0,65827.0,0.23455127]
[1727582651985,0.069544,65828.0,65827.0,0.23455127]
[1727582652186,0.430344,65828.0,65827.0,0.23455127]
[1727582652886,0.540344,65828.0,65827.0,0.23455127]
[1727582654177,0.540344,65828.0,65827.0,0.29755127]
[1727582654577,0.540344,65828.0,65827.0,0.29771023]
[1727582658689,0.21384383,65828.0,65827.0,0.074]
[1727582658895,0.57204383,65828.0,65827.0,0.074]
[1727582659287,0.537744,65828.0,65827.0,0.074]
[1727582659594,0.57206272,65828.0,65827.0,0.074]
[1727582662499,0.21126272,65828.0,65827.0,0.074]
[1727582662708,0.57206272,65828.0,65827.0,0.074]
[1727582666603,0.537744,65828.0,65827.0,0.17598311]
[1727582669213,0.537744,65828.0,65827.0,0.17597697]
[1727582671810,0.540344,65828.0,65827.0,0.17597697]
[1727582674012,0.540344,65828.0,65827.0,0.17584734]
[1727582677013,0.179544,65828.0,65827.0,0.17584734]
[1727582680722,0.179544,65828.0,65827.0,0.14474734]
[1727582681221,0.179544,65828.0,65827.0,0.11284734]
[1727582681615,0.25420264,65828.0,65827.0,0.011]
[1727582683623,0.179544,65828.0,65827.0,0.011]
[1727582683824,0.25418282,65828.0,65827.0,0.011]
[1727582684808,0.21408227,65828.0,65827.0,0.011]
[1727582686527,0.2541845,65828.0,65827.0,0.011]
[1727582688525,0.25420495,65828.0,65827.0,0.011]
[1727582688728,0.25420495,65828.0,65827.0,0.11285059]
[1727582688729,0.179544,65828.0,65827.0,0.11285059]
[1727582696629,0.176944,65828.0,65827.0,0.11285059]
[1727582696825,0.37328686,65828.0,65827.0,0.011]
[1727582698937,0.37326376,65828.0,65827.0,0.011]
[1727582701631,0.2517062,65828.0,65827.0,0.011]
[1727582701823,0.37330038,65828.0,65827.0,0.011]
[1727582702421,0.37330852,65828.0,65827.0,0.011]
[1727582703826,0.176944,65828.0,65827.0,0.2039163]
[1727582704031,0.176944,65828.0,65827.0,0.11282902]
[1727582704625,0.176944,65828.0,65827.0,0.2039163]
[1727582705724,0.066944,65828.0,65827.0,0.11282902]
[1727582705925,0.176944,65828.0,65827.0,0.2039163]
[1727582709329,0.066944,65828.0,65827.0,0.2039163]
[1727582709623,0.176944,65828.0,65827.0,0.2039163]
[1727582710839,0.179544,65828.0,65827.0,0.2039163]
[1727582711739,0.179544,65828.0,65827.0,0.20399637]
[1727582711938,0.37576456,65828.0,65827.0,0.011]
[1727582718842,0.30113399,65828.0,65827.0,0.2039873]
[1727582719038,0.179544,65828.0,65827.0,0.2039873]
[1727582719746,0.179544,65828.0,65827.0,0.11290002]
[1727582720141,0.179544,65828.0,65827.0,0.2039873]
[1727582721542,0.179544,65828.0,65827.0,0.11290002]
[1727582721844,0.179544,65828.0,65827.0,0.2039873]
[1727582722244,0.179544,65828.0,65827.0,0.11290002]
[1727582722451,0.179544,65828.0,65827.0,0.18885795]
[1727582722948,0.179544,65828.0,65827.0,0.011]
[1727582723136,0.179544,65828.0,65827.0,0.08695793]
[1727582723331,0.179544,65828.0,65827.0,0.011]
[1727582723544,0.179544,65828.0,65827.0,0.08695793]
[1727582724044,0.179544,65828.0,65827.0,0.011]
[1727582725034,0.255488,65828.0,65827.0,0.011]
[1727582725234,0.1146,65828.0,65822.0,0.07595793]
[1727582725446,0.075951,65822.0,65821.0,0.07595793]
[1727582725646,0.075951,65822.0,65820.0,0.07595793]
[1727582726044,0.0749289,65821.0,65816.0,0.0035]
[1727582726349,0.21632903,65817.0,65814.0,0.0035]
[1727582726545,0.0346725,65816.0,65811.0,0.3643]
[1727582726748,0.11,65813.0,65811.0,0.3608]
[1727582726941,0.1446725,65813.0,65811.0,0.3608]
[1727582728441,0.11,65813.0,65811.0,0.3608]
[1727582728750,0.111,65813.0,65809.0,0.02185005]
[1727582729140,0.111,65813.0,65810.0,0.3608]
[1727582729337,0.112,65813.0,65810.0,0.3608]
[1727582730646,0.112,65813.0,65809.0,0.02185005]
[1727582730846,0.112,65813.0,65810.0,0.3608]
[1727582733945,0.01318877,65813.0,65812.0,0.31807588]
[1727582740445,0.01318877,65813.0,65812.0,0.31638713]
[1727582740957,0.01318877,65813.0,65812.0,0.1961083]
[1727582741357,0.01318877,65813.0,65812.0,0.1636083]
[1727582743157,0.08914977,65813.0,65812.0,0.1009083]
[1727582743455,0.08914977,65813.0,65812.0,0.07584634]
[1727582743657,0.08914977,65813.0,65811.0,0.07584634]
[1727582743658,0.075962,65812.0,65811.0,0.07584634]
[1727582743860,0.075963,65811.0,65810.0,0.43664634]
[1727582744163,0.075963,65811.0,65810.0,0.53771905]
[1727582745254,0.076963,65811.0,65810.0,0.53771905]
[1727582745562,0.077963,65811.0,65810.0,0.53771905]
[1727582745755,0.077963,65811.0,65810.0,0.43664634]
[1727582747463,0.077963,65811.0,65810.0,0.5377154]
[1727582747858,0.09974398,65811.0,65810.0,0.5377154]
[1727582748463,0.02378098,65811.0,65805.0,0.094507]
[1727582748665,0.075966,65809.0,65808.0,0.07585852]
[1727582748863,0.075966,65809.0,65808.0,0.17704705]
[1727582749165,0.07583704,65809.0,65804.0,0.0928]
[1727582749373,0.11,65805.0,65804.0,0.0928]
[1727582749576,0.14509312,65805.0,65804.0,0.0928]
[1727582749759,0.14496014,65805.0,65804.0,0.0928]
[1727582750659,0.14596014,65805.0,65804.0,0.0928]
[1727582751273,0.14696014,65805.0,65804.0,0.0928]
[1727582754271,0.22293014,65805.0,65804.0,0.0928]
[1727582756063,0.07797,65805.0,65804.0,0.561514]
[1727582756266,0.18797,65805.0,65804.0,0.4211766]
[1727582756563,0.18797,65805.0,65804.0,0.31507691]
[1727582757366,0.18797,65805.0,65804.0,0.25317691]
[1727582757678,0.18797,65805.0,65804.0,0.22227691]
[1727582759164,0.18797,65805.0,65804.0,0.12087144]
[1727582759365,0.075971,65804.0,65802.0,0.41932008]
[1727582759565,0.075971,65804.0,65802.0,0.41856008]
[1727582759870,0.075971,65804.0,65802.0,0.39626686]
[1727582760468,0.075972,65803.0,65802.0,0.39626686]
[1727582761773,0.077972,65803.0,65802.0,0.39626686]
[1727582761974,0.187972,65803.0,65802.0,0.39626686]
[1727582771182,0.187972,65803.0,65802.0,0.29016717]
[1727582776179,0.077972,65803.0,65802.0,0.29016717]
[1727582776383,0.187972,65803.0,65802.0,0.29016717]
[1727582777681,0.187972,65803.0,65802.0,0.00227956]
[1727582779188,0.186972,65803.0,65802.0,0.00227956]
[1727582779388,0.187972,65803.0,65802.0,0.00227956]
[1727582786795,0.112,65803.0,65802.0,0.10373549]
[1727582787091,0.112,65803.0,65802.0,0.22466707]
[1727582787283,0.187972,65803.0,65802.0,0.22466707]
[1727582790794,0.190572,65803.0,65802.0,0.22466707]
[1727582790987,0.080572,65803.0,65802.0,0.22466707]
[1727582793787,0.080572,65803.0,65802.0,0.19492935]
[1727582801897,0.11603639,65803.0,65802.0,0.00227956]
[1727582802211,0.11503639,65803.0,65802.0,0.00227956]
[1727582802398,0.11603639,65803.0,65802.0,0.00227956]
[1727582806389,0.11604537,65803.0,65802.0,0.00227956]
[1727582809006,0.080572,65803.0,65802.0,0.47004056]
[1727582811091,0.080572,65803.0,65802.0,0.22397229]
[1727582811405,0.080572,65803.0,65802.0,0.22397785]
[1727582812797,0.080572,65803.0,65802.0,0.47004729]
[1727582815806,0.077972,65803.0,65802.0,0.22397785]
[1727582816215,0.077972,65803.0,65802.0,0.22398474]
[1727582816903,0.1441456,65803.0,65802.0,0.00227956]
[1727582817299,0.2201176,65803.0,65802.0,0.00227956]
[1727582818494,0.15566496,65803.0,65802.0,0.00227956]
[1727582823607,0.075978,65798.0,65797.0,0.0035]
[1727582823910,0.075979,65797.0,65796.0,0.22099666]
[1727582824110,0.075979,65797.0,65796.0,0.58145668]
[1727582824498,0.075979,65797.0,65796.0,0.44196877]
[1727582825005,0.075979,65797.0,65796.0,0.33586908]
[1727582825505,0.076979,65797.0,65796.0,0.33586908]
[1727582825910,0.077979,65797.0,65796.0,0.33586908]
[1727582826713,0.077979,65797.0,65796.0,0.33584115]
[1727582827011,0.077979,65797.0,65796.0,0.31424418]
[1727582828018,0.002,65797.0,65796.0,0.5598225]
[1727582828198,0.077979,65797.0,65796.0,0.4665225]
[1727582828405,0.077979,65797.0,65796.0,0.22094418]
[1727582829613,0.075981,65796.0,65795.0,0.10609969]
[1727582829810,0.075981,65796.0,65795.0,0.32632297]
[1727582831113,0.076981,65796.0,65795.0,0.32632297]
[1727582831312,0.186981,65796.0,65795.0,0.32632297]
[1727582831911,0.186981,65796.0,65795.0,0.19161773]
[1727582832114,0.187981,65796.0,65795.0,0.19161773]
[1727582835620,0.077981,65796.0,65795.0,0.19161773]
[1727582835819,0.187981,65796.0,65795.0,0.19161773]
[1727582838924,0.187981,65796.0,65794.0,0.38306098]
[1727582838925,0.22418862,65796.0,65794.0,0.38306098]
[1727582839222,0.03620762,65795.0,65794.0,0.38306098]
[1727582841511,0.03720762,65795.0,65794.0,0.38306098]
[1727582841711,0.03820762,65795.0,65794.0,0.38306098]
[1727582846919,0.11,65796.0,65794.0,0.74238021]
[1727582847240,0.185981,65796.0,65795.0,0.46572286]
[1727582848124,0.187981,65796.0,65795.0,0.46572286]
[1727582848635,0.187981,65796.0,65795.0,0.32664169]
[1727582849132,0.187981,65796.0,65795.0,0.22025708]
[1727582849533,0.186981,65796.0,65795.0,0.22025708]
[1727582849923,0.187981,65796.0,65795.0,0.22025708]
[1727582850930,0.077981,65796.0,65795.0,0.22025708]
[1727582851240,0.187981,65796.0,65795.0,0.22025708]
[1727582851730,0.187981,65796.0,65795.0,0.100484]
[1727582852119,0.187981,65796.0,65795.0,0.22016942]
[1727582852323,0.187981,65796.0,65789.0,0.10988461]
[1727582852324,0.075984,65793.0,65792.0,0.09118193]
[1727582852527,0.546784,65793.0,65791.0,0.09118193]
[1727582852836,0.075986,65791.0,65790.0,0.09118193]
[1727582853038,0.185986,65791.0,65790.0,0.09118193]
[1727582853334,0.185986,65791.0,65789.0,0.09118193]
[1727582853632,0.075989,65789.0,65788.0,0.09118193]
[1727582853835,0.185989,65789.0,65788.0,0.09118193]
[1727582854131,0.075997,65782.0,65780.0,0.3643]
[1727582854334,0.185997,65782.0,65780.0,0.3608]
[1727582854757,0.12,65781.0,65780.0,0.3608]
[1727582855931,0.12,65781.0,65775.0,0.00227998]
[1727582856132,0.12,65776.0,65775.0,0.00227998]
[1727582857124,0.196004,65776.0,65775.0,0.00227998]
[1727582857730,0.197004,65776.0,65775.0,0.00227998]
[1727582857925,0.198004,65776.0,65775.0,0.00227998]
[1727582863335,0.188004,65776.0,65775.0,0.09318741]
[1727582864235,0.078004,65776.0,65775.0,0.09318741]
[1727582864435,0.002,65776.0,65775.0,0.09318741]
[1727582864731,0.112,65776.0,65775.0,0.09318741]
[1727582865526,0.002,65776.0,65775.0,0.09318741]
[1727582865732,0.002,65776.0,65775.0,0.12338741]
[1727582866034,0.002,65776.0,65775.0,0.03247998]
[1727582867233,0.002,65776.0,65775.0,0.13191508]
[1727582867630,0.002,65776.0,65775.0,0.20789666]
[1727582869040,0.002,65776.0,65775.0,0.10848498]
[1727582877039,0.0035,65782.0,65775.0,0.32628691]
[1727582877345,0.0035,65782.0,65779.0,0.09099688]
[1727582877549,0.075996,65783.0,65780.0,0.09936393]
[1727582877841,0.075996,65783.0,65781.0,0.09936393]
[1727582878144,0.075996,65783.0,65782.0,0.09936393]
[1727582878739,0.076996,65783.0,65782.0,0.09936393]
[1727582879039,0.077996,65783.0,65782.0,0.09936393]
[1727582879441,0.077996,65783.0,65782.0,0.19036081]
[1727582879745,0.077996,65783.0,65782.0,0.09936393]
[1727582880447,0.077996,65783.0,65782.0,0.19036081]
[1727582880836,0.076996,65783.0,65782.0,0.19036081]
[1727582881039,0.077996,65783.0,65782.0,0.19039697]
[1727582881644,0.077996,65783.0,65782.0,0.09940009]
[1727582882441,0.077996,65783.0,65782.0,0.21797999]
[1727582885750,0.077996,65783.0,65782.0,0.09950703]
[1727582886945,0.077996,65783.0,65782.0,0.09950498]
[1727582889544,0.077996,65783.0,65782.0,0.2181421]
[1727582892162,0.077996,65783.0,65778.0,0.0456177]
[1727582893768,0.11,65781.0,65779.0,0.0456177]
[1727582894253,0.11,65781.0,65780.0,0.0456177]
[1727582894964,0.111,65781.0,65779.0,0.0456177]
[1727582895563,0.112,65781.0,65780.0,0.0456177]
[1727582896462,0.111,65781.0,65780.0,0.0456177]
[1727582896667,0.112,65781.0,65780.0,0.0456177]
[1727582897260,0.111,65781.0,65780.0,0.0456177]
[1727582897467,0.112,65781.0,65780.0,0.0456177]
[1727582897860,0.002,65781.0,65780.0,0.0456177]
[1727582898570,0.002,65781.0,65779.0,0.0456177]
[1727582898865,0.002,65781.0,65780.0,0.0456177]
[1727582899065,0.002,65781.0,65780.0,0.32455022]
[1727582899362,0.002,65781.0,65780.0,0.21816561]
[1727582899968,0.002,65781.0,65780.0,0.32455022]
[1727582900164,0.002,65781.0,65780.0,0.21816561]